Cogmind - Beta 13 @@@ ROGUE MODE // 2024.03.09 @ 07:57:39 Player: CatPlusPlus Result: Destroyed by NU-MRC(R) with Subdweller Beam Cannon Performance ------------- Evolutions (0) 0 Regions Visited (2) 400 Robots Destroyed (27) 135 Value Destroyed (632) 632 Prototype IDs (0) 0 Alien Tech Used (0) 0 Bonus (0) 0 TOTAL SCORE: 1167 Bonus ------- None Cogmind --------- Core Integrity 0/250 Matter 290/300 Energy 125/125 System Corruption 1% Temperature Cool (9) Movement Treading (160) Location -10/Subcaves Parts ------- > --- POWER (1) -------- Light Ion Engine > --- PROPULSION (2) --- Light Treads Light Treads > --- UTILITY (2) ------ (None) > --- WEAPON (2) ------- Battle Rifle Slug Cannon > --- INVENTORY (5) ---- Ion Engine Light Treads Light Treads Grenade Launcher Makeshift Hammer Peak State ------------ > --- POWER ------------ Light Ion Engine > --- PROPULSION ------- Light Treads Light Treads > --- UTILITY ---------- High-capacity Storage Unit Seismic Detector > --- WEAPON ----------- Particle Gun Light Assault Rifle > --- INVENTORY -------- Ion Engine Ion Engine Light Treads Aluminum Leg Wheel Compact Wheel Improved Heat Sink Structural Scanner Sensor Array Signal Interpreter Seismic Detector Light Armor Plating Small Laser Light Assault Rifle Light Assault Rifle Light Assault Rifle Light Cannon Grenade Launcher [Rating: 10] Favorites ----------- Power Light Ion Engine Engine Light Ion Engine Propulsion Light Treads Treads Light Treads Leg Aluminum Leg Utility Seismic Detector Device Seismic Detector Storage High-capacity Storage Unit Protection Scrap Shield Weapon Light Assault Rifle Energy Gun Particle Gun Ballistic Gun Light Assault Rifle Ballistic Cannon Light Cannon Launcher Grenade Launcher Build | -11 -10 -10 ------- Run | Yrd Mat Sub Slots Evolved . | . . . Power . | . . . Propulsion . | . . . Utility . | . . . Weapon . | . . . Parts Attached 17 | 2 10 5 Power 2 | . 2 . Engine 2 | . 2 . Core . | . . . Reactor . | . . . Propulsion 4 | . 4 . Treads 4 | . 4 . Leg . | . . . Wheel . | . . . Hover . | . . . Flight . | . . . Utility 3 | 1 1 1 Device 1 | 1 . . Storage 1 | . 1 . Processor . | . . . Hackware . | . . . Protection 1 | . . 1 Artifact . | . . . Weapon 8 | 1 3 4 Energy Gun 3 | 1 1 1 Energy Cannon . | . . . Ballistic Gun 2 | . 1 1 Ballistic Cannon 2 | . . 2 Launcher 1 | . 1 . Special Weapon . | . . . Impact Weapon . | . . . Slashing Weapon . | . . . Piercing Weapon . | . . . Special Melee Weapon . | . . . Unidentified Prototypes . | . . . Parts Lost 2 | . . 2 Power . | . . . Propulsion . | . . . Utility 1 | . . 1 Weapon 1 | . . 1 Highest Loss Streak 2 | . . 2 To Critical Strikes . | . . . Average Slot Usage (%) 90 | . 100 81 Engine 14 | . 14 14 Treads 26 | . 24 28 Leg 1 | . 3 . Device 7 | . 14 . Storage 7 | . 14 . Protection 4 | . . 8 Energy Gun 11 | . 14 9 Ballistic Gun 9 | . 14 5 Ballistic Cannon 6 | . . 13 Naked Turns . | . . . Heaviest Build 50 | 13 48 50 Greatest Support 40 | 20 40 40 Greatest Overweight (x) 1 | . 1 1 Average Overweight (x) . | . . . Largest Inventory Capacity 20 | 8 20 20 Average Capacity 10 | 8 15 5 Most Carried 20 | 7 20 20 Average Carried 9 | 6 14 5 Final Capacity 20 | 8 20 5 Final Carried 20 | 7 20 5 Class Distribution -------------------- 54% | Scavenger-Mutant 45% | Mutant Dominant Class ---------------- Mutant | -10/Materials Scavenger-Mutant | -10/Subcaves Resources | -11 -10 -10 ----------- Run | Yrd Mat Sub Matter Collected 530 | 225 170 135 Remotely . | . . . Salvage Created 869 | 105 471 293 Parts 69 | 5 46 18 Haulers Intercepted 2 | . 2 . Recyclers Shooed . | . . . Parts Field Recycled . | . . . Retrieved Matter . | . . . Parts Self-Destructed 11 | . . 11 Prevented . | . . . Kills | -11 -10 -10 ------- Run | Yrd Mat Sub Combat Hostiles Destroyed 16 | . 8 8 Guns 11 | . 8 3 Cannons 5 | . . 5 Classes Destroyed 9 | 2 6 1 Builder 2 | . 2 . Tunneler 2 | 1 1 . Hauler 2 | . 2 . Recycler 1 | 1 . . Operator 1 | . 1 . Watcher 3 | . 3 . Swarmer 3 | . 3 . Grunt 7 | . 5 2 Subdweller 6 | . . 6 Best Kill Streak 5 | 2 5 2 Combat Bots Only 4 | . 4 2 Max Kills in Single Turn 1 | 1 1 1 Gunslinging . | . . . Exploded . | . . . Melee . | . . . Uniques/NPCs Destroyed . | . . . Combat | -11 -10 -10 -------- Run | Yrd Mat Sub Hostile Shots Fired 72 | . 37 35 Missed 23 | . 11 12 Damage Taken 896 | . 283 613 Core 250 | . 108 142 Absorbed by Shields . | . . . Core Remaining (%) 100 | 100 . . Volleys Fired 97 | 5 53 39 Largest 2 | 2 2 2 Hottest 100 | 60 85 100 Shots Fired 172 | 10 103 59 Gun 148 | 10 102 36 Cannon 23 | . . 23 Launcher 1 | . 1 . Special . | . . . Kinetic 84 | 5 52 27 Thermal 87 | 5 50 32 Explosive 1 | . 1 . Electromagnetic . | . . . Robot Hit Streak 17 | 5 17 16 Robot Miss Streak 5 | 3 5 1 Penetration Max . | . . . Secondary Targets . | . . . Shots Hit Robots 103 | 6 62 35 Core Hits 41 | 3 24 14 Critical Kills . | . . . Critical Parts Destroyed . | . . . Critical Strikes 4 | . 2 2 Burn 2 | . 2 . Destroy 1 | . . 1 Blast 1 | . . 1 Melee Attacks . | . . . Impact . | . . . Slashing . | . . . Piercing . | . . . Sneak Attacks . | . . . Combat Hostiles . | . . . Follow-up Attacks . | . . . Damage Inflicted 1346 | 57 696 593 Guns 1056 | 57 696 303 Cannons 290 | . . 290 Explosions . | . . . Melee . | . . . Ramming . | . . . Kinetic 558 | 16 197 345 Thermal 788 | 41 499 248 Explosive . | . . . Electromagnetic . | . . . Impact . | . . . Slashing . | . . . Piercing . | . . . Highest Corruption 1 | . 1 1 Average Corruption 1 | . 1 1 Corruption Purged . | . . . Corruption Blocked . | . . . Effects 11 | . 3 8 Message Errors 2 | . . 2 Matter Fused 1 | . 1 . Heat Flow Errors 3 | . . 3 Energy Discharges 2 | . . 2 Data Loss (minor) 3 | . 2 1 Overload Shots . | . . . Overflow Damage . | . . . Projectiles . | . . . Explosions . | . . . Melee . | . . . Knockbacks 5 | . . 5 Impact . | . . . Kinetic 5 | . . 5 Secondary . | . . . Self-Inflicted Damage . | . . . Shots . | . . . Rammed . | . . . Targets Rammed . | . . . Kicked . | . . . Crushed . | . . . Highest Temperature 288 | 20 288 189 Average Temperature 75 | 15 79 74 Received Heat Transfer 282 | . 135 147 Effects 1 | . 1 . Energy Bleed 1 | . 1 . Siege Activations . | . . . Robots Corrupted . | . . . Combat Hostiles . | . . . Parts Fried . | . . . Impact Corruptions . | . . . Robots Melted . | . . . Combat Hostiles . | . . . Parts Melted 4 | . 4 . Heat Transferred 1836 | 100 1278 458 Parts Sabotaged . | . . . Parts Stolen . | . . . Parts Stripped . | . . . Power Chain Reactions . | . . . Alert | -11 -10 -10 ------- Run | Yrd Mat Sub Peak Influence 215 | 10 215 . Initial 6 | . 6 . Average 41 | 6 43 . Maximum Alert Level 1 | . 1 . Low Security (%) 98 | 100 98 . Level 1 1 | . 1 . Level 2 . | . . . Level 3 . | . . . Level 4 . | . . . Level 5 . | . . . High Security . | . . . Max Security . | . . . Squads Dispatched 1 | . 1 . Investigation . | . . . Extermination . | . . . Reinforcement 1 | . 1 . Assault . | . . . Garrison . | . . . Intercept . | . . . Searches Triggered . | . . . Construction Impeded . | . . . Haulers Reinforced . | . . . Active Scanning Responses . | . . . Cargo Convoy Interrupts . | . . . Stealth | -11 -10 -10 --------- Run | Yrd Mat Sub Distress Signals 1 | . 1 . Communications Jammed . | . . . Distress Signals . | . . . Times Spotted 25 | . 17 8 Peak Tracking Total 6 | . 6 2 Tactical Retreats 1 | . 1 . Traps | -11 -10 -10 ------- Run | Yrd Mat Sub Traps Triggered 2 | . 1 1 Indirectly . | . . . Trap Hack Attempts . | . . . Triggered . | . . . Disarmed . | . . . Reprogrammed . | . . . Reused . | . . . Traps Extracted . | . . . Installed . | . . . Triggered . | . . . Machines | -11 -10 -10 ---------- Run | Yrd Mat Sub Machines Disabled . | . . . Max in Single Turn . | . . . Machines Repaired . | . . . Machines Dismantled . | . . . Machines Sabotaged . | . . . Overloaded Fab Kills . | . . . Hacking | -11 -10 -10 --------- Run | Yrd Mat Sub Machines Accessed 7 | . 7 . Terminals 6 | . 6 . Fabricators . | . . . Repair Stations . | . . . Recycling Units 1 | . 1 . Scanalyzers . | . . . Garrison Access . | . . . Total Hacks 18 | . 18 . Successful 8 | . 8 . Failed 10 | . 10 . Catastrophic 1 | . 1 . Database Lockouts . | . . . Manual 13 | . 13 . Terminals 15 | . 15 . Fabricators . | . . . Repair Stations . | . . . Recycling Units 3 | . 3 . Scanalyzers . | . . . Garrison Access . | . . . Terminal Hacks 5 | . 5 . Locate Traps 3 | . 3 . Recall Reinforcements 1 | . 1 . Hauler Manifests 1 | . 1 . Fabricator Hacks . | . . . Repair Station Hacks . | . . . Recycling Unit Hacks . | . . . Scanalyzer . | . . . Garrison Access Hacks . | . . . Unauthorized Hacks 3 | . 3 . Terminals 2 | . 2 . Botnet 2 | . 2 . Fabricators . | . . . Repair Stations . | . . . Recycling Units 1 | . 1 . Mask 1 | . 1 . Scanalyzers . | . . . Garrison Access . | . . . Data Cores Recovered . | . . . Used . | . . . Hacking Detections 7 | . 7 . Full Trace Events . | . . . Feedback Events . | . . . Feedback Blocked . | . . . Robot Schematics Acquired . | . . . Robots Built . | . . . Authchips . | . . . Time . | . . . Total Robot Build Rating . | . . . Part Schematics Acquired . | . . . Parts Built . | . . . Authchips . | . . . Time . | . . . Total Part Build Rating . | . . . Parts Repaired . | . . . Time . | . . . Parts Recycled . | . . . Recycled Matter . | . . . Retrieved Matter . | . . . Retrieved Components . | . . . Parts Scanalyzed . | . . . Part Schematics Acquired . | . . . Parts Damaged . | . . . Bothacking | -11 -10 -10 ------------ Run | Yrd Mat Sub Used RIF Installer . | . . . Robots Hacked . | . . . Non-combat . | . . . Combat . | . . . Robot Hacks Applied . | . . . Relay Couplers Released . | . . . Fabnet Peak Effective % . | . . . Robots Rewired . | . . . Allies Hacked . | . . . Hacks Repelled . | . . . Allies | -11 -10 -10 -------- Run | Yrd Mat Sub Total Allies . | . . . Largest Group . | . . . Highest-Rated Group . | . . . Highest-Rated Ally . | . . . Total Orders . | . . . Ally Attacks . | . . . Total Damage . | . . . Kills . | . . . Allies Corrupted . | . . . Allies Melted . | . . . Intel | -11 -10 -10 ------- Run | Yrd Mat Sub Robot Analysis Total . | . . . Derelict Logs Recovered . | . . . Drone Launches . | . . . Drone Recoveries . | . . . Exploration | -11 -10 -10 ------------- Run | Yrd Mat Sub Turns Passed 2509 | 46 1224 1239 Spaces Moved 1190 | 23 488 679 Core . | . . . Treads 1085 | . 406 679 Legs 105 | 23 82 . Wheels . | . . . Hover . | . . . Flight . | . . . Fastest Speed 120 | 120 120 160 Average Speed 177 | 120 199 162 Slowest Speed 240 | 120 240 240 Overloaded Moves . | . . . Propulsion Burnouts . | . . . Robots Hopped . | . . . Cave-ins Triggered . | . . . Exploration Rate (%) 38 | 3 71 40 Regions Visited 2 Branch Regions 1 Pre-discovered Areas . | . . . Known Exits Taken . | . . . Unknown Exits Taken 2 | 1 1 . Scrap Searched 1 | . . 1 Spaces Dug 9 | . 9 . Terrain Destroyed 9 | . 9 . Melee . | . . . Projectile . | . . . AOE 9 | . 9 . Terrain Rammed . | . . . Walls Destroyed . | . . . Machines Disabled . | . . . Actions | -11 -10 -10 --------- Run | Yrd Mat Sub Total 1441 | 33 652 756 Wait 84 | . 64 20 Move 1188 | 22 487 679 Hop . | . . . Pick Up 28 | 2 22 4 Fast Attach 4 | 1 1 2 Attach 2 | 1 . 1 Detach 2 | 1 1 . Swap 11 | . 9 2 Drop 23 | 1 15 7 Fire 97 | 5 53 39 Melee . | . . . Ram . | . . . Kick . | . . . Crush . | . . . Escape Stasis . | . . . Rewire . | . . . Trap . | . . . Miscellaneous 2 | . . 2 Route ------- -11/Scrapyard -10/Materials (discovered 4 exits: [*Mat] / [*Min x2] / [*Sub]) -10/Subcaves (discovered 1 exit: [*Mat]) History --------- Turn | Location | Event 15 | -11/Scrapyard | Discovered new exit (range 3) 47 | -11/Scrapyard | Entered Materials 311 | -10/Materials | Build established: Mutant 890 | -10/Materials | Discovered new exit (range 9) 1049 | -10/Materials | Build established: Scavenger-Mutant 1106 | -10/Materials | Discovered new exit (range 5) 1194 | -10/Materials | Discovered new exit (range 16) 1233 | -10/Materials | Discovered new exit (range 8) 1271 | -10/Materials | Entered Subcaves 1390 | -10/Subcaves | Core integrity fell below 50% 1921 | -10/Subcaves | Discovered new exit (range 14) 1983 | -10/Subcaves | Shifting Twisted Machinery released Battle Rifle 2009 | -10/Subcaves | Shifting Twisted Machinery released Sub. Monowheel 2174 | -10/Subcaves | Shifting Twisted Machinery released Flamer 2394 | -10/Subcaves | Build established: Mutant 2508 | -10/Subcaves | Core integrity fell below 20% 2510 | -10/Subcaves | Disturbed a concealed Subdweller 2510 | -10/Subcaves | Destroyed by NU-MRC(R) with Subdweller Beam Cannon Last Messages --------------- 02105_ Scrap Shield destroyed. 02105_ 4A-V9G(R) destroyed. 02109_ Acquired 3 matter. 02111_ Acquired 27 matter. 02113_ Acquired 7 matter. 02166_ N8PIT6K2O49EFV8HPCARJ1& Flamer falls loose from the Twisted Machinery. 02208_ System corrupted: Heat flow error (+194). 02299_ Acquired Mak. Hammer. 02324_ Searching scrap... 02324_ Found Sub. Monowheel. 02324_ Found 30 Matter. 02329_ System corrupted: Component data lost. 02354_ Dropped Lgt. Cannon. 02364_ System corrupted: Heat flow error (+229). 02507_ Triggered Shrapnel Trap. 02507_ An expanding cloud of shrapnel blasts out in all directions. 02510_ NU-MRC(R) angrily emerges from the Twisted Machinery. Map ----- +----------------------------------------------------+ | ?? ???????????????????????## ???## #???? | | ???#????????????????????????? ## ##??? | | ????????????????????????????# ##?? | | ????????????????????????????## ### ### | | ?????????????????????????????##### ??## | | ?????????????????????????????????###????## | | ?????????????????????????????????????????# | | ?????????????????????????????????????????# | | ?????????????????????????????????????????# ### | | ???????????????????????????????????????## #?# | | ?????????????????????????????????#######?# #### | | # ???????????????????????????????## ## ### ### | | ????????????????????????????????## ## ## | | ???????????????????????????????## | | ?????????????????????????????### | | ?????????????????????????????# #### | | ????????????????????????????## ###??## | | ????????????????????????????# ##????# | | ????????????????????????#####< ####?# | | ????????????????????????# # < #?# | | ????????????????????????# ## ### | | ????????????????????????# #? #?### | | ???????????????????????## ; ## #???# | | ??????????????????????##;; ;; ## #??? | | ????????????????#<< <# ; ### ?? | | ????????????????# <